bitfinex-derivatives/quotes_ETHF0:USTF0_20240917
["timestamp","ask_amount","ask_price","bid_price","bid_amount"]
[1726597691322,3.2078,2363.1,2362.7,0.82523]
[1726597691323,3.63087,2363.1,2362.7,0.82523]
[1726597691628,3.2078,2362.9,2362.7,0.82522]
[1726597691921,3.2078,2362.9,2362.8,0.42312]
[1726597692130,3.2078,2362.9,2362.7,0.82523]
[1726597692422,3.2078,2362.9,2362.8,0.42312]
[1726597692616,3.2078,2362.9,2362.7,0.82522]
[1726597692816,3.2078,2362.9,2362.8,0.42312]
[1726597693019,3.2078,2362.9,2362.8,3.72312]
[1726597693623,4.0536,2363.4,2363.2,0.42304]
[1726597693819,4.0536,2363.4,2363.2,3.72304]
[1726597694016,3.636,2363.4,2363.3,0.42303]
[1726597694221,3.2078,2363.7,2363.2,3.3]
[1726597694416,3.2078,2363.7,2363.6,0.42297]
[1726597694821,3.2078,2363.7,2363.6,0.81317]
[1726597695023,3.2078,2363.7,2363.6,0.3902]
[1726597695322,7.86117,2363.7,2363.4,0.423]
[1726597695518,7.86117,2363.7,2362.6,1.05788]
[1726597695519,0.423,2363.5,2362.6,1.05788]
[1726597695725,3.2078,2363.2,2363.1,0.42306]
[1726597696628,3.2078,2363.2,2363.1,3.72306]
[1726597697125,0.84998,2363.6,2363.1,7.532]
[1726597697126,0.427,2363.6,2363.1,7.532]
[1726597697428,3.6153,2363.7,2363.3,3.3]
[1726597697730,3.6153,2363.7,2363.6,0.42297]
[1726597697925,3.6153,2363.7,2363.4,0.4135]
[1726597698130,3.2078,2363.7,2363.6,0.42297]
[1726597698627,3.2078,2363.7,2363.5,0.42298]
[1726597698822,3.2078,2363.7,2363.6,0.42297]
[1726597701831,3.2078,2363.7,2363.2,0.4233]
[1726597702130,0.3981,2363.6,2363.5,0.42299]
[1726597703928,3.2078,2363.7,2363.3,1.05756]
[1726597704128,3.2078,2363.7,2363.6,0.42297]
[1726597705224,3.6069,2364.1,2364.0,0.4229]
[1726597705426,4.02978,2364.1,2363.9,0.4229]
[1726597705930,3.6069,2364.1,2364.0,0.4229]
[1726597706420,3.2078,2364.1,2364.0,0.4229]
[1726597706626,0.8081,2364.3,2364.2,0.42287]
[1726597706627,0.3892,2364.3,2364.2,0.42287]
[1726597706820,3.63064,2364.4,2364.3,0.42285]
[1726597706821,3.2078,2364.4,2364.3,0.42285]
[1726597707331,3.2078,2364.4,2363.7,1.45058]
[1726597707332,0.42285,2364.3,2363.7,1.45058]
[1726597707632,3.2078,2364.0,2363.7,0.7964]
[1726597707933,3.2078,2364.0,2363.9,0.42292]
[1726597709431,3.2078,2364.0,2363.6,0.42296]
[1726597709731,3.6152,2364.0,2363.9,0.42292]
[1726597710028,3.2078,2364.0,2363.9,0.42292]
[1726597711229,2.04984499,2364.3,2363.7,1.05737]
[1726597711230,4.85024499,2364.3,2363.7,1.05737]
[1726597711526,5.27309499,2364.3,2363.8,0.8014]
[1726597711728,3.2078,2364.3,2364.2,0.42287]
[1726597714031,0.4201,2364.4,2364.3,0.42285]
[1726597714227,5.26054499,2364.6,2364.0,1.05726]
[1726597714533,3.2078,2364.3,2364.2,0.42287]
[1726597717538,5.41078481,2364.3,2364.2,0.42287]
[1726597718128,3.2078,2364.3,2364.2,0.42287]
[1726597719139,5.96427294,2364.3,2364.2,0.42287]
[1726597720135,3.2078,2364.3,2364.2,0.42287]
[1726597720350,5.96009214,2364.3,2364.2,0.42287]
[1726597720639,3.2078,2364.3,2364.2,0.42287]
[1726597720826,5.96014049,2364.3,2364.2,1.87634]
[1726597721029,3.2078,2364.3,2364.2,6.10594]
[1726597721236,5.41132146,2364.3,2364.2,6.10594]
[1726597721433,5.41132146,2364.3,2364.2,7.16311]
[1726597721630,2.20352146,2364.3,2364.2,7.16311]
[1726597722835,2.20352146,2364.3,2364.2,17.22311]
[1726597723038,1.65315419,2364.4,2364.3,2.53711]
[1726597723236,2.20352146,2364.6,2364.4,1.05708]
[1726597723437,2.20352146,2364.6,2364.5,1.90275]
[1726597723629,2.20352146,2364.6,2364.5,0.84571]
[1726597723835,2.75505521,2364.7,2364.6,0.42279]
[1726597725343,3.63056,2364.8,2364.7,0.42278]
[1726597725639,3.63056,2364.8,2364.6,0.42279]
[1726597725640,0.42278,2364.7,2364.6,0.42279]
[1726597725845,2.62604368,2364.7,2364.6,0.42279]
[1726597726645,0.4228,2364.6,2364.5,0.42281]
[1726597726942,2.62606368,2364.6,2364.5,0.4228]
[1726597727140,3.03505368,2364.6,2364.5,0.4228]
[1726597727340,0.83179,2364.6,2364.5,0.4228]
[1726597727548,3.03505368,2364.6,2364.5,0.4228]
[1726597727743,0.83179,2364.6,2364.5,0.4228]
[1726597728742,3.98659592,2364.6,2364.5,0.42281]
[1726597729242,1.2325,2364.6,2364.5,0.42281]
[1726597729637,3.98659592,2364.6,2364.5,0.42281]
[1726597730246,1.2325,2364.6,2364.5,0.42281]
[1726597731447,3.43478173,2364.6,2364.5,0.42281]
[1726597732453,0.42283,2364.5,2364.4,0.42282]
[1726597732745,3.2078,2364.5,2364.4,0.42282]
[1726597733851,3.6312,2364.5,2364.4,0.42282]
[1726597734051,3.6312,2364.5,2364.4,1.4799]
[1726597734348,6.51692505,2364.8,2364.6,1.05699]
[1726597734546,6.93968505,2364.8,2364.7,0.42278]
[1726597734744,3.2078,2364.8,2364.7,0.42278]
[1726597734944,6.51692505,2364.8,2364.7,0.42278]
[1726597735557,3.2078,2364.8,2364.7,0.42278]
[1726597736055,6.51692505,2364.8,2364.7,0.42278]
[1726597736759,6.93968505,2364.8,2364.7,0.42278]
[1726597737242,6.93446211,2364.8,2364.7,0.42278]
[1726597737446,6.51170211,2364.8,2364.7,0.42278]
[1726597737656,6.93428139,2364.8,2364.7,0.42278]
[1726597738150,0.42279,2364.7,2364.6,0.42278]
[1726597738354,3.72806582,2364.7,2364.6,0.42278]
[1726597738554,0.42279,2364.7,2364.6,0.42278]
[1726597738754,3.72842949,2364.7,2364.6,0.42278]
[1726597739553,3.30563949,2364.7,2364.6,0.42278]
[1726597739853,7.49644153,2364.8,2364.7,0.42278]
[1726597740054,3.63057,2364.8,2364.7,0.42278]
[1726597740352,7.49644153,2364.8,2364.7,0.42278]
[1726597740758,3.63057,2364.8,2364.7,0.42278]
[1726597741145,0.4228,2364.7,2364.4,0.3996]
[1726597741349,0.4228,2364.7,2364.6,0.42278]
[1726597741551,3.17903174,2364.7,2364.6,0.42278]
[1726597742353,0.4228,2364.7,2364.6,0.42278]
[1726597742554,3.17978605,2364.7,2364.6,0.42278]
[1726597742755,0.4228,2364.7,2364.6,0.42278]
[1726597743155,3.17978619,2364.7,2364.6,0.42278]
[1726597743350,0.4228,2364.7,2364.6,0.42278]
[1726597743654,0.42281,2364.6,2364.5,0.42279]
[1726597743857,1.8944,2364.6,2364.5,0.42279]
[1726597744055,1.8944,2364.6,2364.4,0.42281]
[1726597744056,0.42284,2364.5,2364.4,0.42281]
[1726597744255,1.47993,2364.4,2364.3,0.42283]
[1726597744457,0.42288,2364.2,2364.1,0.42285]
[1726597744663,3.18093745,2364.2,2364.1,0.42285]
[1726597744852,6.98765745,2364.2,2364.1,0.42285]
[1726597745157,2.75805745,2364.2,2364.1,1.48007]
[1726597745561,2.75805745,2364.2,2364.1,0.42285]
[1726597745763,2.75805745,2364.2,2364.1,1.48007]
[1726597745956,5.96585745,2364.2,2364.1,1.48007]
[1726597746157,17.16027,2364.2,2363.8,2.09635551]
[1726597746362,17.16027,2364.2,2364.0,0.42289]
[1726597746363,0.8122,2364.1,2364.0,0.42289]
[1726597746572,0.3982,2364.1,2364.0,0.42289]
[1726597747263,1.20898,2364.1,2364.0,0.42289]
[1726597747861,0.4229,2364.0,2363.9,0.42291]
[1726597748158,0.4229,2364.0,2363.4,2.72997551]
[1726597748159,6.60703223,2364.0,2363.4,2.72997551]
[1726597748350,0.42293,2363.9,2363.8,0.42292]
[1726597748555,6.93774223,2364.0,2363.9,0.42292]
[1726597748755,3.2078,2364.0,2363.9,0.42292]
[1726597748961,4.09313223,2364.1,2364.0,0.4229]
[1726597749164,1.20898,2364.1,2364.0,0.4229]
[1726597749361,3.30703223,2364.2,2364.1,0.42288]
[1726597750160,3.30703223,2364.2,2364.1,3.72288]
[1726597750351,6.51483223,2364.3,2364.2,0.42287]
[1726597751264,3.2078,2364.3,2364.0,3.3]
[1726597751462,3.3149176,2364.2,2364.1,0.42288]
[1726597751656,6.5227176,2364.3,2364.2,0.42287]
[1726597752262,3.2078,2364.3,2364.2,0.42287]
[1726597753064,7.4374,2364.3,2363.9,1.22]
[1726597753362,3.2078,2364.0,2363.9,1.64291]
[1726597753565,0.4229,2364.0,2363.9,0.4072]
[1726597753762,0.42292,2363.9,2363.5,1.2345]
[1726597753963,3.2078,2363.7,2363.6,0.42297]
[1726597754167,5.97140253,2363.7,2363.6,0.42297]
[1726597754368,2.76360253,2363.7,2363.6,0.42297]
[1726597754667,0.42292,2363.9,2363.8,0.42293]
[1726597754862,4.28879153,2363.9,2363.8,0.42293]
[1726597755358,3.86587153,2363.9,2363.8,0.42293]
[1726597755558,4.28879153,2363.9,2363.8,0.42293]
[1726597757466,3.86587153,2363.9,2363.6,3.3]
[1726597757667,3.31605716,2363.8,2363.5,2.29197]
[1726597757967,3.31605716,2363.8,2363.7,0.42295]
[1726597758363,3.31605716,2363.8,2363.5,5.59197]
[1726597758364,4.28880153,2363.9,2363.8,0.42294]
[1726597760473,0.42295,2363.8,2363.7,0.42294]
[1726597760673,3.73577381,2363.8,2363.7,0.42294]
[1726597761971,3.31282381,2363.8,2363.7,0.42294]
[1726597762167,3.86587153,2363.9,2363.8,0.42294]
[1726597762168,3.31282381,2363.9,2363.8,0.42294]
[1726597762368,3.73574381,2363.9,2363.8,0.42294]
[1726597762571,0.83142,2363.9,2363.8,0.42294]
[1726597764672,3.2078,2364.0,2363.9,0.42292]
[1726597764866,3.31131609,2364.2,2364.0,0.42288]
[1726597765069,0.42289,2364.1,2364.0,1.22378]
[1726597765379,7.73277609,2364.3,2364.2,0.42287]
[1726597765671,0.42288,2364.2,2364.1,0.42287]
[1726597766174,4.65248,2364.2,2364.1,0.42287]
[1726597766469,0.42288,2364.1,2364.0,1.61969]
[1726597766968,0.42288,2364.2,2364.1,0.42287]
[1726597767174,7.30991609,2364.3,2364.0,1.1968]
[1726597767368,3.2078,2364.3,2364.2,0.42287]
[1726597769869,6.51911609,2364.3,2364.2,0.42287]
[1726597770969,0.42288,2364.1,2364.0,0.39]
[1726597771174,3.7337947,2364.1,2364.0,0.8129]
[1726597771383,0.4229,2364.0,2363.7,0.8541]
[1726597771570,2.75930442,2363.8,2363.7,1.66455]
[1726597771765,6.9416147,2364.0,2363.9,0.42292]
[1726597771971,3.2078,2364.0,2363.9,0.42292]
[1726597773473,6.5187147,2364.0,2363.9,0.42292]
[1726597773674,3.2078,2364.0,2363.9,0.42292]
[1726597774073,6.5187147,2364.0,2363.9,0.42292]
[1726597774873,3.2078,2364.0,2363.9,0.42292]
[1726597775176,3.3109147,2364.1,2364.0,0.4229]
[1726597775670,3.3109147,2364.2,2364.1,0.42288]
[1726597776280,4.28558382,2364.3,2364.2,0.42287]
[1726597776476,3.86273382,2364.3,2363.7,4.5416]
[1726597776684,6.94272173,2364.1,2364.0,0.42289]
[1726597776973,3.31203173,2364.1,2364.0,0.42289]
[1726597777174,0.42287,2364.2,2364.1,0.42288]
[1726597778077,3.73545793,2364.3,2364.2,0.42287]
[1726597780884,0.42288,2364.2,2364.1,0.42287]
[1726597781078,3.73547793,2364.2,2364.1,0.42287]
[1726597781783,0.4229,2364.1,2364.0,0.42289]
[1726597782082,4.4753,2364.1,2364.0,0.42289]
[1726597784281,7.78789793,2364.1,2364.0,0.42289]
[1726597785181,8.33803382,2364.1,2364.0,0.42289]
[1726597785976,5.13023382,2364.1,2364.0,0.42289]
[1726597786178,8.33803382,2364.1,2364.0,0.42289]
[1726597787076,7.07053382,2364.1,2364.0,0.42289]
[1726597787279,3.2078,2364.1,2364.0,0.42289]
[1726597787476,7.07053382,2364.1,2364.0,1.48015]
[1726597787680,3.2078,2364.1,2364.0,1.48015]
[1726597788079,3.31762132,2364.1,2364.0,1.48015]
[1726597788284,3.86273382,2364.2,2364.1,0.42288]
[1726597788486,4.28560382,2364.2,2364.1,1.23668]
[1726597788685,7.50208401,2364.2,2364.1,1.23668]
[1726597788889,3.63067,2364.2,2364.1,1.23668]
[1726597789388,0.42291,2364.0,2363.9,0.4229]
[1726597789775,1.24811,2364.0,2363.9,0.4229]
[1726597790581,0.8252,2364.0,2363.9,0.4229]
[1726597790976,1.2481,2364.0,2363.9,0.4229]
[1726597791180,0.8252,2364.0,2363.9,0.4229]
[1726597791782,8.6533136,2364.1,2364.0,0.4229]
[1726597792784,8.2304136,2364.1,2364.0,0.4229]
[1726597792984,8.2304136,2364.1,2364.0,0.816]
[1726597792985,4.42535648,2364.1,2364.0,0.816]
[1726597793184,3.87175024,2364.1,2364.0,2.93052]
[1726597793392,3.87175024,2364.2,2364.1,2.53732]
[1726597793580,3.87175024,2364.3,2364.1,9.00812]
[1726597793781,3.87175024,2364.3,2364.2,1.48004]
[1726597797688,3.87175024,2364.3,2364.2,0.42287]
[1726597798686,7.07955024,2364.3,2364.2,0.42287]
[1726597798884,7.50276867,2364.3,2364.2,0.42287]
[1726597799085,0.42287,2364.2,2364.1,0.84107]
[1726597799286,8.47930648,2364.3,2364.2,0.42287]
[1726597800192,12.80979966,2364.3,2364.2,0.42287]
[1726597800896,13.20159966,2364.3,2364.2,0.42287]
[1726597801992,13.20159966,2364.3,2364.1,0.4182]
[1726597801993,12.77874966,2364.3,2364.1,0.4182]
[1726597802194,8.66180846,2364.2,2364.1,0.42287]
[1726597802393,4.23379766,2364.2,2364.1,0.42287]
[1726597802594,4.23379766,2364.2,2363.9,0.4229]
[1726597802595,0.42291,2364.0,2363.9,0.4229]
[1726597802794,5.24130743,2364.1,2364.0,0.4229]
[1726597803189,0.3904,2364.1,2364.0,0.4229]
[1726597803393,0.42291,2364.0,2363.9,0.4229]
[1726597803602,3.2078,2364.0,2363.8,0.8228]
[1726597803800,3.2078,2364.0,2363.8,0.82202]
[1726597803801,3.8735628,2363.9,2363.8,0.82202]
[1726597804096,4.2799628,2363.9,2363.8,1.39011985]
[1726597804507,4.2799628,2363.9,2363.8,1.95821932]
[1726597804797,0.82932,2363.9,2363.8,0.56809985]
[1726597804993,5.25683223,2363.9,2363.8,0.56809985]
[1726597806398,5.25683223,2363.9,2363.8,0.99103985]
[1726597806791,6.31413223,2363.9,2363.8,0.56809985]
[1726597806996,10.34946661,2363.9,2363.8,0.56809985]
[1726597807195,22.3540803,2363.9,2363.8,0.00209986]
[1726597807497,22.38629272,2363.9,2363.8,0.00209986]
[1726597807693,22.38629272,2363.9,2363.4,1.67245551]
[1726597807694,1.48047,2363.5,2363.4,1.67245551]
[1726597807996,1.48047,2363.5,2363.1,6.881]
[1726597807997,1.05753,2363.4,2363.1,0.42306]
[1726597808301,2.76524147,2363.3,2363.2,0.42304]
[1726597808494,0.82682,2363.4,2363.3,0.42303]
[1726597808694,0.4038,2363.4,2363.3,0.42303]
[1726597809003,3.2078,2363.5,2363.4,0.42301]
[1726597809496,3.2078,2363.5,2363.3,0.3899]
[1726597809703,3.2078,2363.5,2363.4,0.42301]
[1726597810008,0.42301,2363.4,2363.3,0.81291]
[1726597810189,0.42303,2363.3,2363.2,0.4178]
[1726597810393,0.42306,2363.1,2363.0,0.4245]
[1726597810595,3.63086,2363.1,2363.0,0.4245]
[1726597810892,6.39590998,2363.1,2363.0,0.4245]
[1726597811093,3.6346,2363.1,2363.0,0.4245]
[1726597811295,5.419168,2363.1,2363.0,0.84758]
[1726597811602,3.63086,2363.1,2363.0,0.84758]
[1726597811806,3.2078,2363.1,2363.0,0.84758]
[1726597812104,5.41859442,2363.1,2363.0,0.84758]
[1726597812597,5.84165442,2363.1,2363.0,0.84758]
[1726597812901,2.21079442,2363.1,2363.0,0.84758]
[1726597813201,3.2078,2363.1,2362.4,7.47689179]
[1726597813500,3.2078,2363.1,2362.9,0.4231]
[1726597813501,2.2107342,2363.0,2362.9,0.4231]
[1726597813704,5.4185342,2363.1,2363.0,0.42308]
[1726597813894,2.2107342,2363.1,2363.0,0.42308]
[1726597814198,2.2107342,2363.1,2363.0,3.72308]
[1726597814408,2.21010826,2363.1,2363.0,3.72308]
[1726597814707,2.21010826,2363.1,2363.0,0.42308]
[1726597815103,2.63315826,2363.2,2363.1,0.42306]
[1726597815300,2.21010826,2363.2,2363.1,0.42306]
[1726597815507,2.21013155,2363.2,2363.1,0.42306]
[1726597815804,2.21013155,2363.2,2363.1,0.42305]
[1726597815805,2.21018053,2363.2,2363.1,0.42305]
[1726597816000,2.21018053,2363.2,2363.1,4.65505]
[1726597816205,2.21018053,2363.3,2363.2,0.42304]
[1726597816997,3.2078,2363.4,2363.3,0.42303]
[1726597816998,5.97284998,2363.4,2363.3,0.42303]
[1726597817201,3.2078,2363.4,2363.3,0.42303]
[1726597817597,5.41840254,2363.4,2363.3,0.42303]
[1726597817994,3.2078,2363.4,2363.3,0.42303]
[1726597818603,5.4184191,2363.4,2363.3,0.42303]
[1726597819309,3.2078,2363.4,2363.3,0.42303]
[1726597819610,2.76504998,2363.5,2363.4,0.42301]
[1726597819611,2.21034409,2363.5,2363.4,0.42301]
[1726597819806,2.21034409,2363.5,2363.2,4.3576]
[1726597819807,2.21036925,2363.5,2363.2,4.3576]
[1726597820012,6.39582998,2363.6,2363.2,4.3576]
[1726597820303,1.65794117,2363.3,2363.2,4.78064]
[1726597820701,1.65794117,2363.3,2363.2,9.01184]
[1726597822109,2.21058823,2363.5,2363.3,0.42303]
[1726597822314,2.21058823,2363.5,2363.4,4.78054]
[1726597822512,2.21058823,2363.5,2363.4,0.42301]
[1726597822699,8.58868,2363.5,2363.1,0.4211]
[1726597822907,2.63356985,2363.2,2363.1,0.42306]
[1726597823208,2.63356985,2363.2,2362.8,3.11974551]
[1726597823209,2.21050985,2363.2,2363.0,0.42306]
[1726597823408,0.4231,2362.9,2362.7,0.4104]
[1726597823613,0.42312,2362.8,2362.6,0.42315]
[1726597823798,1.6577307,2362.8,2362.6,0.42314]
[1726597824107,3.15319045,2362.7,2362.6,0.42315]
[1726597824308,2.76039045,2362.8,2362.7,0.42313]
[1726597825309,2.76039045,2362.8,2362.4,6.9182]
[1726597825310,0.42314,2362.7,2362.4,0.4104]
[1726597825513,2.20752728,2362.5,2362.4,0.83359]
[1726597826104,1.65508357,2362.5,2362.4,0.83359]
[1726597826305,2.60032728,2362.6,2362.5,0.42317]
[1726597826607,2.60006888,2362.6,2362.5,0.42317]
[1726597827010,2.60006888,2362.6,2362.4,0.83358]
[1726597827209,0.3928,2362.6,2362.5,0.42317]
[1726597827410,3.57542024,2362.6,2362.3,0.4232]
[1726597827616,5.96726024,2362.4,2362.3,0.42321]
[1726597827808,5.41399202,2362.4,2362.3,0.42321]
[1726597828015,5.41399202,2362.4,2362.2,0.42321]
[1726597828216,2.20482057,2362.3,2362.1,0.82604]
[1726597828421,1.65362134,2362.2,2362.1,0.82604]
[1726597828616,1.65357588,2362.2,2362.1,0.4028]
[1726597828917,2.20482057,2362.2,2362.0,0.4276]
[1726597829124,5.24892875,2362.1,2362.0,0.42326]
[1726597829312,2.04112875,2362.1,2362.0,0.42326]
[1726597829514,1.65232875,2362.2,2362.1,0.42324]
[1726597829710,1.65196453,2362.3,2362.2,1.48129]
[1726597830013,4.85976453,2362.4,2362.3,0.42321]
[1726597830213,4.85976453,2362.4,2362.3,4.65601]
[1726597830415,3.2078,2362.4,2362.3,4.65601]
[1726597830926,1.65196453,2362.5,2362.3,4.65601]
[1726597830927,1.65196453,2362.5,2362.4,0.42319]
[1726597831424,2.20482057,2362.7,2362.5,0.42317]
[1726597831425,1.65196453,2362.6,2362.5,0.42317]
[1726597831719,2.20482057,2362.6,2362.2,4.76085]
[1726597831910,1.65091261,2362.5,2362.4,0.42319]
[1726597832107,2.20482057,2362.6,2362.5,0.42317]
[1726597832509,2.20482057,2362.7,2362.6,0.42315]
[1726597832820,6.77919024,2362.8,2362.7,0.42313]
[1726597832821,5.80142057,2362.8,2362.7,0.42313]
[1726597833009,3.5966,2362.8,2362.7,0.42313]
[1726597833424,5.24721177,2362.8,2362.7,0.42313]
[1726597833718,3.5966,2362.8,2362.7,0.42313]
[1726597835018,0.3937,2363.1,2362.7,7.532]
[1726597835019,3.6015,2363.1,2362.7,7.532]
[1726597835323,3.6015,2363.1,2363.0,0.42308]
[1726597835620,4.02458,2363.1,2362.9,0.42309]
[1726597835818,4.02457,2363.1,2362.9,0.4231]
[1726597836219,3.6015,2363.1,2363.0,0.42308]
[1726597836425,4.02457,2363.1,2362.9,0.42309]
[1726597836641,0.42308,2363.0,2362.8,0.398]
[1726597837019,0.42308,2363.0,2362.8,0.82111]
[1726597837217,0.42315,2362.6,2362.3,1.67245551]
[1726597837423,3.2078,2362.4,2362.2,0.42321]
[1726597837717,3.2078,2362.4,2361.9,0.4105]
[1726597837718,0.42321,2362.3,2361.9,0.4105]
[1726597837920,0.42321,2362.3,2362.1,0.42323]
[1726597838122,6.5078,2362.4,2362.2,0.42322]
[1726597838123,6.931,2362.4,2362.2,0.42322]
[1726597838324,0.42321,2362.3,2362.2,0.42322]
[1726597838528,6.931,2362.4,2362.2,0.42322]
[1726597838722,0.42321,2362.3,2362.2,0.42322]
[1726597838920,6.5078,2362.4,2362.2,0.42322]
[1726597839118,0.42321,2362.3,2361.9,0.4105]
[1726597839327,1.65117982,2362.2,2361.9,0.4105]
[1726597839520,1.65117982,2362.3,2362.2,0.42322]
[1726597839830,2.07520277,2362.3,2362.2,0.42322]
[1726597840023,1.65199277,2362.3,2362.2,0.42322]
[1726597840324,0.42321,2362.3,2362.2,0.42322]
[1726597841016,3.631,2362.4,2362.2,0.42322]
[1726597841220,0.42321,2362.3,2362.2,0.42322]
[1726597842013,13.5336,2362.3,2361.5,5.37109333]
[1726597842227,3.2078,2362.0,2361.9,0.42328]
[1726597843121,3.6366,2362.4,2361.7,4.35828]
[1726597843321,3.63104,2362.1,2362.0,0.42325]
[1726597843726,11.79953,2362.1,2361.5,3.6301]
[1726597843928,3.72331,2361.8,2361.5,3.6301]
[1726597844121,4.26579,2362.4,2361.7,3.3]
[1726597844320,6.5078,2362.4,2361.9,0.42327]
[1726597844524,6.5078,2362.4,2361.5,4.68847]
[1726597844525,0.42327,2362.0,2361.5,4.68847]
[1726597844725,0.4288,2361.9,2361.8,0.4233]
[1726597845718,2.08079277,2361.9,2361.8,0.4233]
[1726597846226,0.4288,2361.9,2361.8,0.4233]
[1726597846728,2.46569277,2362.2,2362.1,0.42324]
[1726597846929,2.46597042,2362.2,2362.1,0.42324]
[1726597847131,2.88919042,2362.2,2362.1,0.42324]
[1726597847323,0.8137,2362.2,2362.1,0.42324]
[1726597848130,2.46592107,2362.2,2362.1,0.42324]
[1726597848434,1.65220204,2362.3,2362.1,4.35811]
[1726597848731,2.20482057,2362.4,2362.3,0.42321]
[1726597848732,1.65220204,2362.4,2362.3,0.42321]
[1726597848932,1.65220204,2362.6,2362.5,1.4811]
[1726597849132,2.75946024,2362.9,2362.6,0.42315]
[1726597849133,1.65220204,2362.7,2362.6,0.42315]
[1726597849332,1.65281351,2362.7,2362.6,0.42315]
[1726597849533,1.65279824,2362.8,2362.7,0.42313]
[1726597849932,2.20482057,2362.9,2362.8,0.42312]
[1726597851435,3.2078,2363.0,2362.8,0.42312]
[1726597851436,1.65416045,2363.0,2362.9,0.4231]
[1726597851936,3.14956024,2363.3,2363.1,0.42306]
[1726597851937,2.20482057,2363.2,2363.1,0.42306]
[1726597852136,0.3901,2363.3,2363.2,0.42304]
[1726597852333,2.59618156,2363.3,2363.2,0.42304]
[1726597852637,3.57259024,2363.3,2363.0,0.42307]
[1726597852931,2.20596816,2363.2,2363.0,0.42308]
[1726597853131,2.20634858,2363.2,2363.1,0.42306]
[1726597853537,2.62939858,2363.2,2362.8,3.2078]
[1726597853733,1.65467489,2362.9,2362.8,3.63092]
[1726597854039,2.62941858,2363.1,2362.9,0.4231]
[1726597854531,2.20634858,2363.0,2362.7,0.4063]
[1726597854735,1.65444547,2362.8,2362.7,0.42312]
[1726597855136,2.07064547,2362.8,2362.7,0.42312]
[1726597855326,2.49376547,2362.8,2362.6,0.42314]
[1726597855527,2.20634858,2362.7,2362.6,0.42315]
[1726597855736,3.04566858,2362.8,2362.6,0.42315]
[1726597855940,2.20634858,2362.7,2362.6,0.42315]
[1726597856331,2.62254858,2362.8,2362.7,0.42313]
[1726597856526,5.2858096,2363.2,2362.7,3.3]
[1726597856732,4.04706,2363.2,2362.7,3.3]
[1726597856937,4.04706,2363.2,2363.0,0.42307]
[1726597858535,3.624,2363.2,2363.1,0.42306]
[1726597859946,1.6549496,2363.4,2363.1,3.3]
[1726597860237,5.81504858,2363.5,2363.3,0.42301]
[1726597860238,5.6866496,2363.5,2363.3,0.42301]
[1726597860438,2.20634858,2363.4,2363.3,0.42302]
[1726597860628,2.20634858,2363.4,2363.0,0.4228]
[1726597860830,1.65525258,2363.2,2363.1,0.42305]
[1726597861836,0.42303,2363.3,2363.1,0.42305]
[1726597862035,3.74255166,2363.4,2363.2,0.42304]
[1726597862234,6.92823166,2363.5,2363.3,0.42303]
[1726597862436,7.35123166,2363.5,2363.3,0.42303]
[1726597862745,3.74254166,2363.4,2363.3,0.42303]
[1726597863039,3.31953166,2363.4,2363.3,0.42303]
[1726597864040,3.74254166,2363.4,2363.3,0.42303]
[1726597864235,3.74254166,2363.4,2363.0,0.4228]
[1726597864437,2.759248,2363.1,2363.0,0.84588]
[1726597864639,2.759248,2363.1,2363.0,1.90359]
[1726597864833,2.759248,2363.1,2363.0,6.13559]
[1726597865433,3.74257166,2363.3,2363.2,0.42304]
[1726597866240,3.31953166,2363.3,2363.2,0.42304]
[1726597866539,2.761072,2363.4,2363.3,2.53817]
[1726597866739,0.42296,2363.7,2363.3,4.65423]
[1726597866936,2.76120876,2363.4,2363.3,1.8927]
[1726597867140,2.76120876,2363.5,2363.4,0.42301]
[1726597867335,3.72273166,2363.7,2363.6,0.42297]
[1726597867541,3.58767712,2363.7,2363.6,0.42297]
[1726597867742,7.9336,2363.7,2363.3,0.4121]
[1726597868044,2.20898776,2363.4,2363.3,0.83513]
[1726597868343,3.18424471,2363.5,2363.3,0.83513]
[1726597868644,2.20912609,2363.4,2363.3,0.83513]
[1726597869439,2.76123471,2363.6,2363.5,0.42299]
[1726597869840,3.16443471,2363.7,2363.6,0.42297]
[1726597870237,0.42297,2363.6,2363.5,0.42298]
[1726597870437,6.5078,2363.6,2363.3,0.42302]
[1726597870639,0.42301,2363.4,2363.2,0.4218]
[1726597870840,0.42301,2363.4,2363.2,0.84483]
[1726597870841,2.62927395,2363.3,2363.2,0.84483]
[1726597871041,2.62927395,2363.3,2363.2,0.42303]
[1726597871250,2.20767395,2363.3,2363.2,0.42303]
[1726597871448,3.99997814,2363.5,2363.1,1.47946]
[1726597871644,1.65505609,2363.2,2363.1,1.47946]
[1726597871839,1.65505609,2363.2,2363.1,1.90252]
[1726597872443,1.65505609,2363.2,2363.1,9.43452]
[1726597872944,2.20678482,2363.4,2363.2,0.42304]
[1726597872945,1.65505609,2363.3,2363.2,0.42304]
[1726597873152,2.20678482,2363.4,2363.3,0.42303]
[1726597873443,1.6549869,2363.5,2363.4,2.53807]
[1726597873647,1.6549869,2363.6,2363.5,1.48047]
[1726597873848,2.20678482,2363.8,2363.6,1.48041]
[1726597873849,1.6549869,2363.7,2363.6,1.48041]
[1726597874046,2.20678482,2363.8,2363.7,0.42295]
[1726597874348,2.75977814,2363.9,2363.8,0.42294]
[1726597875540,3.74245166,2363.9,2363.8,0.42294]
[1726597876349,0.42294,2363.8,2363.5,0.4247]
[1726597876648,0.42294,2363.8,2363.7,0.42295]
[1726597876851,3.74247166,2363.8,2363.7,0.42295]
[1726597877050,7.54993166,2363.8,2363.2,4.77062]
[1726597877241,2.20712698,2363.3,2363.2,1.89366]
[1726597878243,2.20712698,2363.3,2363.1,0.8196]
[1726597878244,0.42304,2363.2,2363.1,0.4195]
[1726597878446,0.42304,2363.2,2362.7,4.2656]
[1726597878447,2.75769245,2363.2,2362.8,0.8156]
[1726597878655,3.15251303,2363.1,2363.0,0.42308]